[Event "FIDE WCCC G10 2018"]
[Site "Santiago de Compostela"]
[Date "2018.11.15"]
[Round "11"]
[White "Pheng, Sophia"]
[Black "Chekhani, Anna"]
[Result "0-1"]
[ECO "B85"]
[WhiteElo "1022"]
[BlackElo "1288"]
[Annotator "NA"]
[PlyCount "90"]
[EventDate "2018.11.04"]
[EventType "swiss"]
[EventCountry "ESP"]
[SourceTitle "playchess.com"]
[Source "ChessBase"]
[SourceQuality "1"]
[TimeControl "40/5400+30:1800+30"]

1. e4 {[%emt 0:00:00]} c5 {[%emt 0:00:00]} 2. Nf3 {[%emt 0:00:00]} e6 {[%emt 0:00:14]} 3. d4 {[%emt 0:00:00]} cxd4 {[%emt 0:00:04]} 4. Nxd4 {[%emt 0:00:00]} Nf6 {[%emt 0:00:06]} 5. Nc3 {[%emt 0:00:00]} d6 {[%emt 0:00:43]} 6. Be2 {[%emt 0:00:01]} a6 {[%emt 0:01:06]} 7. O-O {[%emt 0:00:22]} Qc7 {[%emt 0:00:44]} 8. a4 {[%emt 0:00:16]} b6 {[%emt 0:02:13]} 9. f4 {[%emt 0:03:06]} Bb7 {[%emt 0:00:14]} 10. Bf3 {[%emt 0:01:03]} Nbd7 {[%emt 0:01:54]} 11. Nb3 {[%emt 0:04:06]} Be7 {[%emt 0:02:12]} 12. Kh1 {[%emt 0:00:47]} Nc5 {[%emt 0:06:08]} 13. Nxc5 {[%emt 0:01:22]} bxc5 {[%emt 0:00:28]} 14. Be3 {[%emt 0:00:38]} O-O {[%emt 0:00:56]} 15. g4 {[%emt 0:01:04]} d5 {[%emt 0:02:20]} 16. e5 {[%emt 0:04:55]} d4 {[%emt 0:02:35]} 17. exf6 {[%emt 0:00:52]} Bxf6 {[%emt 0:00:29]} 18. Bd2 {[%emt 0:07:27]} dxc3 {[%emt 0:00:44]} 19. bxc3 {[%emt 0:00:26]} Rfd8 {[%emt 0:02:15]} 20. Qe2 {[%emt 0:00:40]} Rd7 {[%emt 0:05:29]} 21. g5 {[%emt 0:02:33]} Be7 {[%emt 0:07:17]} 22. c4 {[%emt 0:03:51]} Rad8 {[%emt 0:01:55]} 23. Bc3 {[%emt 0:00:59]} Bd6 {[%emt 0:00:18]} 24. Rab1 {[%emt 0:04:40]} Bc6 {[%emt 0:02:16]} 25. Qe1 {[%emt 0:01:59]} Bxf3+ {[%emt 0:00:40]} 26. Rxf3 {[%emt 0:00:21]} Qc6 {[%emt 0:00:36]} 27. Qe3 {[%emt 0:03:18]} Qxa4 {[%emt 0:00:47]} 28. Qe4 {[%emt 0:00:37]} Rc8 {[%emt 0:11:44]} 29. Rb6 {[%emt 0:03:07]} Bc7 {[%emt 0:13:29]} 30. Rc6 {[%emt 0:00:44]} Rd1+ {[%emt 0:05:49]} 31. Kg2 {[%emt 0:00:29]} Rd7 {[%emt 0:13:51]} 32. Qe5 {[%emt 0:02:42]} Qxc2+ {[%emt 0:01:41]} 33. Rf2 {[%emt 0:01:57]} Qg6 {[%emt 0:00:29]} 34. Ba5 {[%emt 0:07:05]} f6 {[%emt 0:01:07]} 35. Qxe6+ {[%emt 0:00:24]} Qf7 {[%emt 0:00:15]} 36. Qg4 {[%emt 0:01:46]} f5 {[%emt 0:01:59]} 37. Qe2 {[%emt 0:01:28]} Re8 {[%emt 0:01:42]} 38. Qa2 {[%emt 0:01:48]} Bxa5 {[%emt 0:00:21]} 39. Qxa5 {[%emt 0:00:11]} Qxc4 {[%emt 0:01:18]} 40. Rxc5 {[%emt 0:00:00]} Qe4+ {[%emt 0:00:00]} 41. Kg3 {[%emt 0:07:15]} Rd3+ {[%emt 0:04:04]} 42. Kh4 {[%emt 0:00:16]} Qe3 {[%emt 0:00:49]} 43. Qa2+ {[%emt 0:04:39]} Kh8 {[%emt 0:00:09]} 44. g6 {[%emt 0:02:05]} h6 {[%emt 0:00:30]} 45. Qf7 {[%emt 0:02:12]} Qh3# {[%emt 0:00:10]} 0-1